Cogmind - Beta 16 @@@ ROGUE MODE // 2025.12.11 @ 11:09:42 // Winter2019/RPGLIKE Player: Gallgagger Result: Self-destructed Performance ------------- Evolutions (3) 1500 Regions Visited (10) 2000 Robots Destroyed (382) 1910 Value Destroyed (13959) 13959 Prototype IDs (49) 980 Alien Tech Used (0) 0 Bonus (5742) 5742 TOTAL SCORE: 26091 Bonus ------- High Alert Combat Kills 5079 Follower Combat Kills 264 Entered Garrisons 200 Aligned with FarCom 300 Friendly Fire -101 Cogmind --------- Core Integrity 94/1100 Matter 263/300 Energy 765/1150 System Corruption 1% Temperature Cool (0) Movement Core (100) Ox1 Location -7/Factory Parts ------- > --- POWER (2) -------- (None) > --- PROPULSION (4) --- (None) > --- UTILITY (6) ------ Experimental Power Amplifier Improved Energy Well Experimental Energy Well Weapon Cycler > --- WEAPON (4) ------- Cooled Particle Cannon 8R-AWN's Boregun Molecular Scythe Kinetic Spear > --- INVENTORY (5) ---- Protomatter-51 Gravmag Array Backup Plating III System Restoration Module Peak State ------------ > --- POWER ------------ Light Neutrino Core Micro Neutrino Core > --- PROPULSION ------- Aerolev Unit Gravmag Array Makeshift Hover Unit > --- UTILITY ---------- Experimental Power Amplifier YI-UF0's Bottomless Matter Pit Gravity Neutralizer Seismic Detector Experimental Targeting Computer Advanced Powered Armor > --- WEAPON ----------- 8R-AWN's Boregun 8R-AWN's Boregun > --- INVENTORY -------- Heat Sink Experimental Energy Well [Rating: 94] Favorites ----------- Power Makeshift Power Source Engine Makeshift Power Source Power Core Light Neutrino Core Reactor Mini Fusion Reactor Propulsion Hover Unit Wheel Wheel Hover Unit Hover Unit Utility Seismic Detector Device Seismic Detector Storage YI-UF0's Bottomless Matter Pit Processor Experimental Targeting Computer Protection Medium Armor Plating Weapon 8R-AWN's Boregun Energy Gun Spread Laser Energy Cannon Cooled Particle Cannon Ballistic Gun 8R-AWN's Boregun Launcher Scatter Rocket Array Impact Weapon Heavy Mace Slashing Weapon Blade Saw Piercing Weapon Kinetic Spear Special Melee Weapon Improved Datajack Build | -11 -10 -10 -9 -9 -9 -8 -8 -8 -8 -7 ------- Run | Yrd Mat Min Mat Min Exi Min Mat Gar Mat Fac Slots Evolved 12 | 3 1 . 4 1 . . 3 . . . Power 1 | . . . 1 . . . . . . . Propulsion 3 | 1 . . 1 . . . 1 . . . Utility 5 | 1 1 . 1 . . . 2 . . . Weapon 3 | 1 . . 1 1 . . . . . . Parts Attached 78 | 8 5 1 8 3 14 5 6 5 8 15 Power 14 | 1 . 1 1 . 5 1 . 2 1 2 Engine 8 | 1 . 1 1 . 4 . . 1 . . Core 5 | . . . . . 1 1 . 1 1 1 Reactor 1 | . . . . . . . . . . 1 Propulsion 13 | 2 2 . 1 . 2 . 2 1 3 . Treads . | . . . . . . . . . . . Leg . | . . . . . . . . . . . Wheel 2 | 2 . . . . . . . . . . Hover 11 | . 2 . 1 . 2 . 2 1 3 . Flight . | . . . . . . . . . . . Utility 25 | 2 1 . 3 1 5 3 3 1 2 4 Device 12 | 2 . . . . 2 2 1 . 2 3 Storage 3 | . . . . 1 . 1 . . . 1 Processor 2 | . . . . . 2 . . . . . Hackware . | . . . . . . . . . . . Protection 8 | . 1 . 3 . 1 . 2 1 . . Artifact . | . . . . . . . . . . . Weapon 26 | 3 2 . 3 2 2 1 1 1 2 9 Energy Gun 9 | 2 2 . . 2 . . 1 . . 2 Energy Cannon 2 | . . . . . . . . . . 2 Ballistic Gun 6 | 1 . . 3 . 2 . . . . . Ballistic Cannon . | . . . . . . . . . . . Launcher 3 | . . . . . . 1 . . . 2 Special Weapon . | . . . . . . . . . . . Impact Weapon 2 | . . . . . . . . . 2 . Slashing Weapon 2 | . . . . . . . . 1 . 1 Piercing Weapon 1 | . . . . . . . . . . 1 Special Melee Weapon 1 | . . . . . . . . . . 1 Unidentified Prototypes 26 | . . . 2 1 8 3 2 . . 10 Corrupted Parts 2 | . . . . 1 1 . . . . . System Corruption 5 | . . . . 4 1 . . . . . Parts Lost 8 | . . . . . 2 . . 2 2 2 Power 1 | . . . . . . . . . . 1 Propulsion 1 | . . . . . . . . 1 . . Utility 6 | . . . . . 2 . . 1 2 1 Weapon . | . . . . . . . . . . . Highest Loss Streak 2 | . . . . . 2 . . 2 2 1 To Critical Strikes . | . . . . . . . . . . . Average Backups 1 | . . . 1 2 1 1 2 2 2 2 Power . | . . . . . . . . . . . Propulsion . | . . . . . . . . . . 1 Utility 1 | . . . . . . 1 2 2 2 1 Weapon . | . . . . 2 . . . . . . Tool/Special . | . . . . . . . . . . . Unused Backups 13 | . . 6 2 . 3 . . . . 2 Power 5 | . . 2 . . 3 . . . . . Propulsion 2 | . . 2 . . . . . . . . Utility 4 | . . 1 1 . . . . . . 2 Weapon 2 | . . 1 1 . . . . . . . Tool/Special . | . . . . . . . . . . . Average Slot Usage (%) 85 | . 100 100 90 91 77 76 79 76 85 91 Engine 5 | . 12 12 8 7 7 6 . 1 4 . Core 5 | . . . . . 1 7 13 8 6 10 Hover 20 | . 16 25 24 23 21 15 17 16 20 24 Device 17 | . 26 25 17 15 13 7 11 18 18 25 Storage 4 | . . . . . 2 7 6 6 6 10 Processor 5 | . . . . . 3 15 10 6 5 . Protection 6 | . 6 12 15 15 8 . 3 5 5 . Energy Gun 7 | . 26 25 17 20 3 . . . . . Ballistic Gun 9 | . . . 4 7 12 15 13 11 12 11 Peak Build Rating 94 | 9 12 16 26 32 80 84 94 94 84 87 Average Rating 55 | 4 11 12 20 24 38 74 86 87 79 79 On Entrance 45 | . 9 12 15 23 26 80 79 94 79 83 Avg Prop Armor Cover (%) 5 | . 6 . . . . . . 4 . . Naked Turns . | . . . . . . . . . . . Heaviest Build 54 | 9 12 13 29 32 40 36 54 54 53 45 Greatest Support 62 | 31 31 17 32 32 54 54 62 62 59 54 Greatest Overweight (x) 2 | . . . . . . . 1 1 1 2 Average Overweight (x) . | . . . . . . . . . . . Largest Inventory Capacity 5 | 2 2 3 4 4 4 4 4 4 4 5 Average Capacity 3 | 2 2 2 3 4 4 4 4 4 4 4 Most Carried 5 | . 2 3 3 4 4 4 4 4 4 5 Average Carried 2 | . 1 1 2 3 2 2 2 2 3 4 Final Capacity 5 | 2 2 3 4 4 4 4 4 4 4 5 Final Carried 5 | . 2 . 3 4 4 4 3 2 4 5 Class Distribution -------------------- 54% | Scavenger-Mutant 24% | Mutant 13% | Tank 6% | Scavenger-Gladiator Dominant Class ---------------- Mutant | -10/Materials Mutant | -10/Mines Tank | -9/Materials Tank | -9/Mines Scavenger-Mutant | -9/Exiles Scavenger-Mutant | -8/Mines Scavenger-Mutant | -8/Materials Scavenger-Mutant | -8/Garrison Scavenger-Mutant | -8/Materials Scavenger-Mutant | -7/Factory Resources | -11 -10 -10 -9 -9 -9 -8 -8 -8 -8 -7 ----------- Run | Yrd Mat Min Mat Min Exi Min Mat Gar Mat Fac Matter Collected 11089 | 204 126 10 247 1592 877 1438 1927 1489 1642 1537 Remotely . | . . . . . . . . . . . Salvage Created 14713 | 85 574 369 1516 292 533 898 2873 1484 2760 3329 Parts 919 | 4 47 22 128 8 67 46 174 116 151 156 Haulers Intercepted 16 | . . . 6 . . . 4 . 2 4 Recyclers Shooed 3 | . 1 . 1 . . . . . . 1 Parts Field Recycled . | . . . . . . . . . . . Retrieved Matter . | . . . . . . . . . . . Parts Self-Destructed . | . . . . . . . . . . . Prevented . | . . . . . . . . . . . Parts Restored . | . . . . . . . . . . . Kills | -11 -10 -10 -9 -9 -9 -8 -8 -8 -8 -7 ------- Run | Yrd Mat Min Mat Min Exi Min Mat Gar Mat Fac Combat Hostiles Destroyed 280 | . 29 14 54 4 6 1 50 36 41 45 Guns 279 | . 28 14 54 4 6 1 50 36 41 45 AOE 1 | . 1 . . . . . . . . . Classes Destroyed 22 | 2 3 2 5 . 2 1 1 4 . 2 Worker 26 | . . . 1 . . 14 4 . 4 3 Builder 18 | . . . . . . 7 4 . 5 2 Tunneler 3 | 1 . . 1 . . 1 . . . . Hauler 16 | . . . 6 . . . 4 . 2 4 Recycler 13 | 1 . . . . . 5 1 . 2 4 Mechanic 4 | . . 2 . . . . . . 2 . Operator 2 | . 1 . . . . . 1 . . . Watcher 14 | . . . 3 . . . 4 1 3 3 Swarmer 47 | . 3 5 16 . . . 7 10 . 6 Cutter 1 | . . . . . . . . 1 . . Grunt 150 | . 26 8 27 3 . . 32 9 27 18 Brawler 3 | . . . . . . . . 1 2 . Duelist 5 | . . . 1 . . . . 2 1 1 Protector 2 | . . . . . . . . . . 2 Sentry 39 | . . . 10 . . . 8 7 7 7 Demolisher 1 | . . 1 . . . . . . . . Specialist 3 | . . . . . . . . . . 3 Hunter 11 | . . . . . . . 3 1 4 3 Programmer 9 | . . . . . . . . 4 . 5 Behemoth 1 | . . . . . . . . 1 . . Zionite 8 | . . . . . 8 . . . . . Assembled 5 | . . . . . 5 . . . . . Best Kill Streak 12 | 2 6 3 11 3 9 5 7 10 12 12 Combat Bots Only 12 | . 6 3 10 3 4 1 6 10 9 12 Max Kills in Single Turn 3 | 1 1 2 3 2 2 3 2 2 3 3 Gunslinging 1 | . . 1 1 1 1 . 1 1 . 1 Exploded 1 | . 1 . . . . . . . . . Melee . | . . . . . . . . . . . Uniques/NPCs Destroyed 6 | . . . . 1 4 1 . . . . YI-UF0 (-9/Mines) 8R-AWN (-9/Exiles) EX-HEX (-9/Exiles) EX-DEC (-9/Exiles) EX-BIN (-9/Exiles) 7V-RTL (-8/Mines) Combat | -11 -10 -10 -9 -9 -9 -8 -8 -8 -8 -7 -------- Run | Yrd Mat Min Mat Min Exi Min Mat Gar Mat Fac Hostile Shots Fired 903 | . 61 38 96 11 71 6 107 188 132 193 Missed 289 | . 20 14 42 5 19 1 33 65 30 60 Hits 614 | . 41 24 54 6 52 5 74 123 102 133 Melee 15 | . . . . . 7 . . 8 . . Projectile 599 | . 41 24 54 6 45 5 74 115 102 133 AOE 11 | . . 3 . 7 . . . 1 . . Critical Strikes 65 | . . . . . 22 . 5 10 16 12 Part Disruptions 1 | . . . . . . . . 1 . . Damage Taken 10624 | . 513 372 655 243 1031 136 1510 2425 1858 1881 Core 7824 | . 419 287 492 139 747 113 1071 1731 1310 1515 Absorbed by Shields . | . . . . . . . . . . . Redirected to Core 6356 | . 286 262 328 139 583 84 786 1582 1077 1229 Redirected to Shielding 11 | . 3 8 . . . . . . . . Regen/Repaired (Parts) 3 | . . . . . . . 3 . . . Core Remaining (%) 61 | 100 . 96 . . . 9 . . 42 . Volleys Fired 851 | 3 61 27 87 14 48 140 121 108 120 122 Largest 4 | 2 2 2 3 3 4 2 2 2 2 2 Hottest 153 | 80 130 130 153 153 114 60 60 60 60 135 Shots Fired 1766 | 6 122 54 207 27 133 282 242 216 236 241 Gun 1764 | 6 122 54 207 27 133 282 242 216 236 239 Cannon 2 | . . . . . . . . . . 2 Launcher . | . . . . . . . . . . . Special . | . . . . . . . . . . . Kinetic 1391 | . . . 39 14 123 282 242 216 236 239 Thermal 338 | . 108 54 168 6 . . . . . 2 Explosive . | . . . . . . . . . . . Electromagnetic 37 | 6 14 . . 7 10 . . . . . Robot Hit Streak 74 | 2 17 18 65 24 42 74 33 26 35 20 Robot Miss Streak 10 | 1 10 7 5 1 1 1 1 3 2 3 Penetration Max 2 | . . . . . 1 2 2 2 2 2 Secondary Targets 35 | . 1 2 8 1 2 2 4 7 4 4 Max Gunslinging Chain 1 | . 1 1 1 1 1 1 1 1 1 1 Shots Hit Robots 1273 | 3 106 42 168 21 113 144 185 126 182 183 Core Hits 906 | 2 129 67 257 15 41 56 94 57 90 98 Critical Kills 171 | . . . . . 5 14 47 23 43 39 Critical Parts Destroyed 253 | . . . . . 11 17 64 34 62 65 Critical Strikes 459 | . . . . . 17 46 114 67 107 108 Destroy 458 | . . . . . 16 46 114 67 107 108 Corrupt 1 | . . . . . 1 . . . . . Melee Attacks 9 | . . . . . . . . . 2 7 Impact 2 | . . . . . . . . . 2 . Slashing . | . . . . . . . . . . . Piercing . | . . . . . . . . . . . Sneak Attacks 6 | . . . . . . . . . . 6 Combat Hostiles . | . . . . . . . . . . . Follow-up Attacks . | . . . . . . . . . . . Damage Inflicted 24192 | 42 1433 683 2884 323 1688 2195 3866 2903 3921 4254 Guns 24081 | 42 1385 683 2884 323 1688 2195 3866 2903 3921 4191 Cannons 63 | . . . . . . . . . . 63 Explosions 48 | . 48 . . . . . . . . . Melee . | . . . . . . . . . . . Ramming . | . . . . . . . . . . . Kinetic 19185 | . . . 287 143 1679 2195 3866 2903 3921 4191 Thermal 4763 | . 1318 683 2597 102 . . . . . 63 Explosive . | . . . . . . . . . . . Electromagnetic 244 | 42 115 . . 78 9 . . . . . Impact . | . . . . . . . . . . . Slashing . | . . . . . . . . . . . Piercing . | . . . . . . . . . . . Highest Corruption 5 | . . . . 4 5 5 1 2 2 1 Average Corruption 2 | . . . . 4 4 5 1 1 2 1 Corruption Purged . | . . . . . . . . . . . Corruption Blocked . | . . . . . . . . . . . Effects 86 | . . . . 3 16 39 5 9 13 1 Message Errors 23 | . . . . 1 5 9 . 6 2 . Matter Fused 19 | . . . . . 4 10 1 3 1 . Heat Flow Errors 5 | . . . . . 1 1 2 . 1 . Energy Discharges 8 | . . . . . 2 4 . . 2 . Parts Rejected 1 | . . . . . 1 . . . . . Parts Fused 2 | . . . . 1 . . . . 1 . Data Loss (minor) 14 | . . . . . 2 7 1 . 3 1 Data Loss (major) 2 | . . . . 1 . 1 . . . . Misfires 5 | . . . . . 1 4 . . . . Alerts 2 | . . . . . . 1 1 . . . Weapon Failures 5 | . . . . . . 2 . . 3 . Overload Shots . | . . . . . . . . . . . Overflow Damage 2 | . . . . . . . . . . 2 Projectiles 2 | . . . . . . . . . . 2 Explosions . | . . . . . . . . . . . Melee . | . . . . . . . . . . . Knockbacks . | . . . . . . . . . . . Impact . | . . . . . . . . . . . Kinetic . | . . . . . . . . . . . Secondary . | . . . . . . . . . . . Self-Inflicted Damage . | . . . . . . . . . . . Shots . | . . . . . . . . . . . Rammed . | . . . . . . . . . . . Targets Rammed . | . . . . . . . . . . . Kicked . | . . . . . . . . . . . Crushed . | . . . . . . . . . . . Highest Temperature 156 | . 138 141 . . 156 133 138 . 123 . Average Temperature 45 | . 41 50 . . 76 68 85 . 65 . Received Heat Transfer 2362 | . 246 78 258 9 160 9 450 513 324 315 Siege Activations . | . . . . . . . . . . . Martial Activations . | . . . . . . . . . . . Shielding Activations . | . . . . . . . . . . . Robots Disrupted . | . . . . . . . . . . . Combat Hostiles . | . . . . . . . . . . . Robots Corrupted . | . . . . . . . . . . . Combat Hostiles . | . . . . . . . . . . . Parts Fried . | . . . . . . . . . . . Impact Corruptions . | . . . . . . . . . . . Robots Melted . | . . . . . . . . . . . Combat Hostiles . | . . . . . . . . . . . Parts Melted 3 | . 1 1 1 . . . . . . . Heat Transferred 5916 | . 1670 870 3200 130 . . . . . 46 Parts Sabotaged . | . . . . . . . . . . . Parts Stolen . | . . . . . . . . . . . Parts Stripped . | . . . . . . . . . . . Power Chain Reactions 1 | . 1 . . . . . . . . . Alert | -11 -10 -10 -9 -9 -9 -8 -8 -8 -8 -7 ------- Run | Yrd Mat Min Mat Min Exi Min Mat Gar Mat Fac Maximum Alert Level 5 | . 2 1 4 2 . . 4 5 5 4 Low Security (%) 24 | 100 35 17 18 . . 100 8 . . . Level 1 18 | . 18 82 10 36 . . 35 . . . Level 2 15 | . 46 . 25 63 . . 21 . . 5 Level 3 19 | . . . 30 . . . 30 18 17 63 Level 4 12 | . . . 14 . . . 3 38 32 30 Level 5 9 | . . . . . . . . 42 50 . High Security . | . . . . . . . . . . . Max Security . | . . . . . . . . . . . Sterilizations 2 | . . . 1 . . . 1 . . . Peak Influence 2094 | 10 649 311 1296 532 . 36 1168 2094 2037 1289 Initial 1020 | . . 236 99 497 . . 7 755 1020 900 Average 680 | 1 349 238 670 426 . 5 555 1554 1537 1009 Influence Increases 9802 | 10 1013 471 1705 85 . 201 2017 1419 1444 1437 Destroy 0b10 Robot/C 5580 | . 580 340 1080 60 . . 1000 840 820 860 Destroy 0b10 Robot/NC 490 | 10 5 10 55 . . 135 90 5 90 90 Destroy Leader 1168 | . 130 60 288 10 . . 246 20 230 184 Allied During Kill 51 | . . 16 . . . . . 35 . . Trap Triggered on 0b10 30 | . . 30 . . . . . . . . Successful Hack 136 | . 20 . 54 . . . 5 12 16 29 Select Force Hacks 840 | . 260 . 210 . . . 310 . 60 . Disable Machine 330 | . 15 . . 15 . . 150 . 75 75 Anti-Garrison Action 400 | . . . . . . . . 400 . . Destroy Structure 312 | . 3 . 3 . . 66 96 77 48 19 Partial Spotted 90 | . . . 15 . . . 15 15 30 15 Lose Combat Pursuer 375 | . . 15 . . . . 105 15 75 165 Influence Decreases 8525 | 10 406 823 684 1057 304 182 874 487 1558 2140 Entered New Map 4183 | . . 371 156 779 304 . 12 407 1074 1080 Time Decay 3252 | 10 406 392 518 278 . 182 562 . 464 440 Lost Part 60 | . . . . . . . . 20 20 20 Lost Ally 130 | . . 60 10 . . . . 60 . . Purge Threat 900 | . . . . . . . 300 . . 600 Squads Dispatched 53 | . 10 3 11 . . . 12 . 10 7 Investigation 39 | . 9 . 10 . . . 10 . 7 3 Extermination 2 | . . . . . . . . . . 2 Reinforcement 6 | . 1 . . . . . 2 . 1 2 Assault 6 | . . 3 1 . . . . . 2 . Garrison . | . . . . . . . . . . . Intercept . | . . . . . . . . . . . Searches Triggered . | . . . . . . . . . . . Unchained Authorized 1 | . . . . . . . . . 1 . Construction Impeded . | . . . . . . . . . . . Haulers Reinforced 1 | . . . . . . . . . . 1 Active Scanning Responses . | . . . . . . . . . . . Cargo Convoy Interrupts 1 | . . . . . . . . . . 1 Stealth | -11 -10 -10 -9 -9 -9 -8 -8 -8 -8 -7 --------- Run | Yrd Mat Min Mat Min Exi Min Mat Gar Mat Fac Distress Signals 14 | . 1 . 3 . . . 1 . 7 2 Communications Jammed . | . . . . . . . . . . . Distress Signals . | . . . . . . . . . . . Times Spotted 386 | . 40 22 63 8 16 4 63 41 62 67 Peak Tracking Total 14 | . 5 4 7 1 9 1 5 5 8 14 Tactical Retreats 25 | . . 1 . 2 1 4 5 1 4 7 Traps | -11 -10 -10 -9 -9 -9 -8 -8 -8 -8 -7 ------- Run | Yrd Mat Min Mat Min Exi Min Mat Gar Mat Fac Traps Triggered 20 | . 1 . 3 . . . 2 8 3 3 Indirectly . | . . . . . . . . . . . Trap Hack Attempts 2 | . . . . . . . . . . 2 Triggered . | . . . . . . . . . . . Disarmed . | . . . . . . . . . . . Reprogrammed . | . . . . . . . . . . . Reused 3 | . . 3 . . . . . . . . Traps Extracted . | . . . . . . . . . . . Installed 3 | . . 3 . . . . . . . . Triggered 3 | . . 3 . . . . . . . . Most Traps Carried 2 | . . 2 . . . . . . . . Machines | -11 -10 -10 -9 -9 -9 -8 -8 -8 -8 -7 ---------- Run | Yrd Mat Min Mat Min Exi Min Mat Gar Mat Fac Machines Disabled 42 | . 1 . . 1 11 . 10 9 5 5 Max in Single Turn 2 | . 1 . . 1 2 . 2 2 1 1 Garrison Access 1 | . . . . . . . . . . 1 Garrison Relay 8 | . . . . . . . . 8 . . Machines Repaired . | . . . . . . . . . . . Machines Dismantled . | . . . . . . . . . . . Machines Sabotaged 12 | . 4 . 3 . . . 5 . . . Overloaded Fab Kills . | . . . . . . . . . . . Hacking | -11 -10 -10 -9 -9 -9 -8 -8 -8 -8 -7 --------- Run | Yrd Mat Min Mat Min Exi Min Mat Gar Mat Fac Machines Accessed 54 | . 10 . 11 . 1 . 13 2 8 9 Terminals 34 | . 7 . 7 . . . 9 2 4 5 Fabricators 1 | . . . . . . . . . . 1 Repair Stations 6 | . 1 . 1 . . . 1 . 2 1 Recycling Units 8 | . 2 . 2 . . . 2 . 2 . Scanalyzers 1 | . . . 1 . . . . . . . Garrison Access 3 | . . . . . . . 1 . . 2 Total Hacks 120 | . 22 . 28 . 1 . 31 3 15 20 Successful 75 | . 13 . 23 . 1 . 19 2 7 10 Failed 45 | . 9 . 5 . . . 12 1 8 10 Catastrophic 6 | . 2 . . . . . . . 3 1 Database Lockouts . | . . . . . . . . . . . Manual 92 | . 17 . 22 . 1 . 26 . 13 13 Terminals 90 | . 17 . 21 . . . 25 3 11 13 Fabricators 1 | . . . . . . . . . . 1 Repair Stations 11 | . 3 . 2 . . . 1 . 2 3 Recycling Units 9 | . 2 . 2 . . . 3 . 2 . Scanalyzers 3 | . . . 3 . . . . . . . Garrison Access 5 | . . . . . . . 2 . . 3 Terminal Hacks 24 | . 4 . 3 . 1 . 7 2 1 6 Record 1 | . . . . . . . 1 . . . Robot Analysis 10 | . 3 . 3 . . . 3 . 1 . Open Door 1 | . . . . . . . . 1 . . Branch Access Points 1 | . 1 . . . . . . . . . Emergency Access Points 1 | . . . . . . . . 1 . . Alert Level 2 | . . . . . . . 1 . . 1 Unreport Threat 6 | . . . . . . . 2 . . 4 Locate Traps 1 | . . . . . . . . . . 1 Proto ID Catalog 1 | . . . . . 1 . . . . . Fabricator Hacks . | . . . . . . . . . . . Repair Station Hacks . | . . . . . . . . . . . Recycling Unit Hacks . | . . . . . . . . . . . Scanalyzer 3 | . . . 3 . . . . . . . Retrieve Study 3 | . . . 3 . . . . . . . Garrison Access Hacks 2 | . . . . . . . 1 . . 1 Unlock Access 1 | . . . . . . . 1 . . . Seal Access 1 | . . . . . . . . . . 1 Unauthorized Hacks 45 | . 9 . 17 . . . 10 . 6 3 Terminals 30 | . 6 . 13 . . . 7 . 2 2 Assimilate 3 | . . . 2 . . . . . 1 . Botnet 8 | . 1 . 4 . . . 1 . . 2 Disrupt 3 | . . . 2 . . . . . 1 . Operators 1 | . . . 1 . . . . . . . Sabotage 15 | . 5 . 4 . . . 6 . . . Fabricators 1 | . . . . . . . . . . 1 Haulers 1 | . . . . . . . . . . 1 Repair Stations 6 | . 1 . 2 . . . 1 . 2 . Mechanics 1 | . . . 1 . . . . . . . Patch 5 | . 1 . 1 . . . 1 . 2 . Recycling Units 8 | . 2 . 2 . . . 2 . 2 . Tunnel 8 | . 2 . 2 . . . 2 . 2 . Scanalyzers . | . . . . . . . . . . . Garrison Access . | . . . . . . . . . . . Data Cores Recovered 1 | . . . . . . . 1 . . . Used . | . . . . . . . . . . . Hacking Detections 29 | . 6 . 4 . . . 7 1 4 7 Full Trace Events 10 | . 2 . 1 . . . 2 . 3 2 Feedback Events . | . . . . . . . . . . . Feedback Blocked . | . . . . . . . . . . . Robot Schematics Acquired . | . . . . . . . . . . . Robots Built . | . . . . . . . . . . . Authchips . | . . . . . . . . . . . Time . | . . . . . . . . . . . Total Robot Build Rating . | . . . . . . . . . . . Part Schematics Acquired . | . . . . . . . . . . . Parts Built . | . . . . . . . . . . . Authchips . | . . . . . . . . . . . Time . | . . . . . . . . . . . Total Part Build Rating . | . . . . . . . . . . . Part Studies Acquired 3 | . . . 3 . . . . . . . Parts Repaired . | . . . . . . . . . . . Time . | . . . . . . . . . . . Parts Recycled . | . . . . . . . . . . . Recycled Matter . | . . . . . . . . . . . Retrieved Matter . | . . . . . . . . . . . Retrieved Components . | . . . . . . . . . . . Parts Scanalyzed . | . . . . . . . . . . . Part Schematics Acquired . | . . . . . . . . . . . Parts Damaged . | . . . . . . . . . . . Bothacking | -11 -10 -10 -9 -9 -9 -8 -8 -8 -8 -7 ------------ Run | Yrd Mat Min Mat Min Exi Min Mat Gar Mat Fac Used RIF Installer . | . . . . . . . . . . . Robots Hacked 7 | . . . . . . . . . . 7 Non-combat 6 | . . . . . . . . . . 6 Combat 1 | . . . . . . . . . . 1 Robot Hacks Applied 7 | . . . . . . . . . . 7 parse_system 2 | . . . . . . . . . . 2 no_distress 3 | . . . . . . . . . . 3 find_chute 2 | . . . . . . . . . . 2 Relay Couplers Released 12 | . . . . . . . . 12 . . Machine Destruction 12 | . . . . . . . . 12 . . Fabnet Peak Effective % . | . . . . . . . . . . . Robots Rewired 1 | . . . . . . . . 1 . . Allies Hacked . | . . . . . . . . . . . Hacks Repelled . | . . . . . . . . . . . Allies | -11 -10 -10 -9 -9 -9 -8 -8 -8 -8 -7 -------- Run | Yrd Mat Min Mat Min Exi Min Mat Gar Mat Fac Total Allies 10 | . . 4 2 . . . . 3 1 . Largest Group 4 | . . 4 1 1 1 . . 2 1 . Highest-Rated Group 116 | . . 116 10 10 10 . . 70 10 . Highest-Rated Ally 39 | . . 31 10 10 10 . . 39 10 . Initial Warlord ECA Mod 8 | . . . . . . . . . 8 7 Total Orders 10 | . . . 4 4 1 . . . 1 . STAY 7 | . . . 3 2 1 . . . 1 . FOLLOW 3 | . . . 1 2 . . . . . . Ally Attacks 37 | . . 14 . . . . . 23 . . Total Damage 660 | . . 251 . . . . . 409 . . Kills 9 | . . 3 . . . . . 6 . . Allies Corrupted . | . . . . . . . . . . . Allies Melted . | . . . . . . . . . . . Turrets Deployed 1 | . . . . . . 1 . . . . Intel | -11 -10 -10 -9 -9 -9 -8 -8 -8 -8 -7 ------- Run | Yrd Mat Min Mat Min Exi Min Mat Gar Mat Fac Active Infowar (turns) 10605 | 6 1010 925 1424 600 562 1258 1684 934 1153 1049 Terrain 4524 | 3 1010 925 1424 600 562 . . . . . Seismic 10448 | 6 1010 925 1424 600 405 1258 1684 934 1153 1049 Robot Analysis Total 10 | . 3 . 3 . . . 3 . 1 . Derelict Logs Recovered 2 | . . 1 . 1 . . . . . . Drone Launches . | . . . . . . . . . . . Drone Recoveries . | . . . . . . . . . . . Exploration | -11 -10 -10 -9 -9 -9 -8 -8 -8 -8 -7 ------------- Run | Yrd Mat Min Mat Min Exi Min Mat Gar Mat Fac Turns Passed 11239 | 58 1010 925 1424 600 666 1605 1684 1021 1165 1081 Spaces Moved 11867 | 43 916 1022 1494 931 782 1347 1680 1003 1213 1436 Core 12 | 2 . . . . . . . . . 10 Treads . | . . . . . . . . . . . Legs . | . . . . . . . . . . . Wheels 294 | 41 253 . . . . . . . . . Hover 11561 | . 663 1022 1494 931 782 1347 1680 1003 1213 1426 Flight . | . . . . . . . . . . . Fastest Speed 40 | 50 56 56 52 52 52 61 52 48 40 40 Average Speed 52 | 86 65 56 52 52 53 61 54 51 43 40 Slowest Speed 150 | 90 90 56 56 52 61 61 106 110 111 150 Overloaded Moves . | . . . . . . . . . . . Propulsion Burnouts . | . . . . . . . . . . . Robots Hopped 1 | . . . . . . 1 . . . . Potential Cave-ins . | . . . . . . . . . . . Cave-ins Triggered . | . . . . . . . . . . . Exploration Rate (%) 79 | 3 97 96 94 99 92 99 92 80 76 45 Regions Visited 10 Branch Regions 4 Pre-discovered Areas 8 | . 2 . 2 . . . 2 . 2 . Known Exits Taken 2 | . 1 . . . . . 1 . . . Unknown Exits Taken 7 | 1 . 1 1 1 1 1 . . 1 . Scrap Searched 4 | . . 1 . 2 . 1 . . . . Spaces Dug 17 | . . . . . . 13 . 1 3 . Terrain Destroyed 375 | . 3 . . . 2 102 156 25 62 25 Melee 1 | . . . . . . . . . 1 . Projectile 261 | . . . . . 2 87 79 18 57 18 AOE 78 | . 3 . . . . . 75 . . . Terrain Rammed . | . . . . . . . . . . . Walls Destroyed . | . . . . . . . . . . . Machines Disabled . | . . . . . . . . . . . Actions | -11 -10 -10 -9 -9 -9 -8 -8 -8 -8 -7 --------- Run | Yrd Mat Min Mat Min Exi Min Mat Gar Mat Fac Total 15129 | 53 1201 1327 1950 1020 924 1847 2194 1285 1598 1730 Wait 1648 | . 190 231 289 60 38 348 274 12 135 71 Move 11855 | 42 915 1021 1493 930 781 1344 1679 1002 1212 1436 Hop 1 | . . . . . . 1 . . . . Pick Up 52 | . 4 13 12 2 5 3 3 2 6 2 Fast Attach 79 | 7 1 . 5 1 14 2 5 10 23 11 Attach 10 | . . . 2 . 3 . 2 1 1 1 Detach 6 | . . . 1 . 3 1 1 . . . Swap 43 | 1 4 1 6 4 9 5 6 . 1 6 Drop 75 | . 2 16 10 2 21 3 4 3 6 8 Fire 851 | 3 61 27 87 14 48 140 121 108 120 122 Melee 8 | . . . . . . . . . 1 7 Ram . | . . . . . . . . . . . Kick . | . . . . . . . . . . . Crush . | . . . . . . . . . . . Escape Stasis 68 | . . . . . . . . 55 . 13 Rewire 30 | . . . . . . . . 30 . . Trap 5 | . . 3 . . . . . . . 2 Miscellaneous 398 | . 24 15 45 7 2 . 99 62 93 51 Route ------- -11/Scrapyard -10/Materials (discovered 5 exits: *Mat x3 / *Min / *Sub) -10/Mines (discovered 3 exits: *Mat x2 / Sub) -9/Materials (discovered 7 exits: *Mat x3 / [*Min x2] / [*Sto x2]) -9/Mines (discovered 3 exits: *Mat x2 / *Exi) -9/Exiles (discovered 2 exits: [*Min x2]) -8/Mines (discovered 2 exits: *Mat x2) -8/Materials (discovered 4 exits: *Fac x3 / Gar) -8/Garrison (discovered 4 exits: *Fac x3 / *Mat) -8/Materials (discovered 2 exits: *Fac x2) -7/Factory (discovered 1 exit: [*Low]) History --------- Turn | Location | Event 1 | -11/Scrapyard | Upgraded with Propulsion slot (x1) 1 | -11/Scrapyard | Upgraded with Utility slot (x1) 1 | -11/Scrapyard | Upgraded with Weapon slot (x1) 25 | -11/Scrapyard | Discovered new exit (range 15) 59 | -11/Scrapyard | Entered Materials 185 | -10/Materials | Discovered new exit (range 11) 292 | -10/Materials | Discovered new exit (range 13) 305 | -10/Materials | Build established: Mutant 347 | -10/Materials | Reached level 2 440 | -10/Materials | Discovered new exit (range 13) 510 | -10/Materials | Upgraded with Utility slot (x1) 526 | -10/Materials | Identified exit to Mines 589 | -10/Materials | Reached level 3 772 | -10/Materials | Discovered new exit (range 9) 817 | -10/Materials | Reached level 4 1069 | -10/Materials | Entered Mines 1188 | -10/Mines | Reached level 5 1210 | -10/Mines | Discovered new exit (range 5) 1227 | -10/Mines | Identified exit to Subcaves 1245 | -10/Mines | Assembled infested the area 1250 | -10/Mines | Assisted by a Guerilla fighting off Assembled 1253 | -10/Mines | Received a Mining Laser from a helpful Derelict 1295 | -10/Mines | Found a hidden stash of uninstalled traps 1452 | -10/Mines | Discovered new exit (range 17) 1488 | -10/Mines | Met a Derelict testing a Signal Generator 1493 | -10/Mines | Found Signal Generator 1994 | -10/Mines | Entered Materials 1996 | -9/Materials | Reached level 6 2134 | -9/Materials | Reached level 7 2149 | -9/Materials | Discovered new exit (range 4) 2202 | -9/Materials | Upgraded with Utility slot (x1) 2215 | -9/Materials | Upgraded with Power slot (x1) 2215 | -9/Materials | Upgraded with Propulsion slot (x1) 2215 | -9/Materials | Upgraded with Weapon slot (x1) 2237 | -9/Materials | Discovered new exit (range 12) 2293 | -9/Materials | Reached level 8 2320 | -9/Materials | Destroyed 10 combat bots 2384 | -9/Materials | Discovered new exit (range 11) 2465 | -9/Materials | Discovered new exit (range 9) 2520 | -9/Materials | Discovered new exit (range 7) 2607 | -9/Materials | Discovered new exit (range 12) 2641 | -9/Materials | Discovered new exit (range 16) 2731 | -9/Materials | Reached level 9 2858 | -9/Materials | Build established: Tank 3194 | -9/Materials | First assault squad dispatched 3206 | -9/Materials | Reached level 10 3245 | -9/Materials | Sterilization system engaged 3245 | -9/Materials | Non-combat units ordered to evacuate 3345 | -9/Materials | Combat units ordered to evacuate 3418 | -9/Materials | Entered Mines 3418 | -9/Mines | Accompanied by 1 ally 3435 | -9/Mines | Learned Materials machine intel 3503 | -9/Mines | Discovered new exit (range 13) 3570 | -9/Mines | YI-UF0 nonchalantly dropped a Grenade Launcher on the ground 3589 | -9/Mines | Discovered new exit (range 5) 3612 | -9/Mines | Upgraded with Weapon slot (x1) 3671 | -9/Mines | Deemed a non-threat by the Exiles lab entrance 3671 | -9/Mines | Discovered new exit (range 5) 3879 | -9/Mines | Destroyed YI-UF0 3890 | -9/Mines | Found Corrupted Prototype Storage 3896 | -9/Mines | Identified YI-UF0's Bottomless Matter Pit 4018 | -9/Mines | Entered Exiles 4018 | -9/Exiles | Accompanied by 1 ally 4025 | -9/Exiles | Discovered new exit (range 17) 4030 | -9/Exiles | Met 8R-AWN 4041 | -9/Exiles | Met EX-HEX 4060 | -9/Exiles | Met EX-DEC 4184 | -9/Exiles | Met EX-BIN 4191 | -9/Exiles | Aligned with FarCom system 4191 | -9/Exiles | Given EX-Vault access code 4203 | -9/Exiles | Opened EX-Vault 4217 | -9/Exiles | Warned to stay clear of 0b10 Research branches 4262 | -9/Exiles | Attacked by the Exiles 4367 | -9/Exiles | Core integrity fell below 50% 4385 | -9/Exiles | Core integrity fell below 20% 4416 | -9/Exiles | Destroyed 8R-AWN 4426 | -9/Exiles | Found Prototype Processor 4426 | -9/Exiles | Identified Exp. Targeting Computer 4431 | -9/Exiles | Found Prototype Protection 4431 | -9/Exiles | Identified 8R-AWN's Armor/EX 4433 | -9/Exiles | Found Prototype Ballistic Gun 4433 | -9/Exiles | Identified 8R-AWN's Boregun 4435 | -9/Exiles | Found Corrupted 8R-AWN's Boregun 4533 | -9/Exiles | Destroyed EX-HEX 4554 | -9/Exiles | Destroyed EX-DEC 4564 | -9/Exiles | Destroyed EX-BIN 4598 | -9/Exiles | Found Prototype Processor 4598 | -9/Exiles | Identified Exp. Core Analyzer 4603 | -9/Exiles | Found Deploy-a-Sentry 4679 | -9/Exiles | Discovered new exit (range 10) 4684 | -9/Exiles | Left Exiles lab with Deploy-a-Sentry 4684 | -9/Exiles | Entered Mines 4688 | -8/Mines | 7V-RTL came to Exiles' defense 4714 | -8/Mines | Build established: Scavenger-Mutant 4808 | -8/Mines | Discovered new exit (range 4) 4931 | -8/Mines | DAS Turret deployed 5290 | -8/Mines | Discovered new exit (range 9) 6213 | -8/Mines | Destroyed 7V-RTL 6247 | -8/Mines | Found Adv. Powered Armor 6289 | -8/Mines | Entered Materials 6290 | -8/Materials | Loaded intel: 57 machine locations 6290 | -8/Materials | Core integrity fell below 50% 6290 | -8/Materials | Core integrity fell below 20% 6291 | -8/Materials | Reached level 11 6352 | -8/Materials | Discovered new exit (range 18) 6367 | -8/Materials | Reached level 12 6453 | -8/Materials | Upgraded with Utility slot (x1) 6855 | -8/Materials | Upgraded with Propulsion slot (x1) 7112 | -8/Materials | Reached level 13 7311 | -8/Materials | Discovered new exit (range 19) 7638 | -8/Materials | Upgraded with Utility slot (x1) 7728 | -8/Materials | Discovered new exit (range 18) 7756 | -8/Materials | Reached level 14 7927 | -8/Materials | Sterilization system engaged 7927 | -8/Materials | Non-combat units ordered to evacuate 7972 | -8/Materials | Identified exit to Garrison 7973 | -8/Materials | Entered Garrison 7993 | -8/Garrison | Triggered checkpoint 8030 | -8/Garrison | Garrison Relay disabled 8102 | -8/Garrison | Triggered checkpoint 8143 | -8/Garrison | Triggered checkpoint 8143 | -8/Garrison | Triggered checkpoint 8229 | -8/Garrison | Destroyed 10 combat bots 8245 | -8/Garrison | Discovered new exit (range 19) 8247 | -8/Garrison | Triggered checkpoint 8283 | -8/Garrison | Triggered checkpoint 8283 | -8/Garrison | Garrison Relay disabled 8309 | -8/Garrison | Rescued a captive Derelict 8309 | -8/Garrison | Rescued a captive Derelict 8451 | -8/Garrison | Garrison Relay disabled 8463 | -8/Garrison | Discovered new exit (range 12) 8563 | -8/Garrison | Discovered new exit (range 9) 8591 | -8/Garrison | Triggered checkpoint 8620 | -8/Garrison | Garrison Relay disabled 8644 | -8/Garrison | Reached level 15 8664 | -8/Garrison | Garrison Relay disabled 8664 | -8/Garrison | Garrison Relay disabled 8706 | -8/Garrison | Garrison Relay disabled 8741 | -8/Garrison | Spotted B-75 Beast 8743 | -8/Garrison | Triggered checkpoint 8756 | -8/Garrison | Discovered new exit (range 5) 8859 | -8/Garrison | Destroyed B-75 Beast 8994 | -8/Garrison | Entered Materials 9394 | -8/Materials | First assault squad dispatched 9568 | -8/Materials | Discovered new exit (range 10) 9688 | -8/Materials | Unchained authorized (6S-H0T) 9702 | -8/Materials | Discovered new exit (range 17) 9953 | -8/Materials | Destroyed 9 combat bots 10030 | -8/Materials | Build established: Scavenger-Gladiator 10159 | -8/Materials | Entered Factory 10160 | -7/Factory | Core integrity fell below 50% 10161 | -7/Factory | Reached level 16 10623 | -7/Factory | Discovered new exit (range 6) 10666 | -7/Factory | Destroyed 7 combat bots 10725 | -7/Factory | Build established: Scavenger-Mutant 10865 | -7/Factory | Reached level 17 10982 | -7/Factory | Destroyed 7 combat bots 11042 | -7/Factory | Cargo convoy interrupted 11065 | -7/Factory | Core integrity fell below 20% 11118 | -7/Factory | Destroyed 12 combat bots 11219 | -7/Factory | Found Prototype Launcher 11219 | -7/Factory | Identified Scatter Rocket Array 11240 | -7/Factory | Self-destructed Last Messages --------------- 11219_ Identified Scatter Rocket Array. 11220_ K-01 Serf collects debris. 11221_ Acquired Prototype Storage. 11221_ Identified Imp. Energy Well. 11222_ K-01 Serf collects debris. 11224_ Acquired Prototype Slashing Weapon. 11224_ Identified Molecular Scythe. 11225_ K-01 Serf collects debris. 11226_ Acquired Prototype Launcher. 11226_ Identified Neutron Missile Launcher. 11229_ Acquired Prototype Piercing Weapon. 11229_ Identified Kinetic Spear. 11230_ K-01 Serf collects debris. 11233_ Acquired Prototype Energy Cannon. 11233_ Identified Cld. Particle Cannon. 11233_ R-06 Scavenger collects Airjet. 11236_ Acquired 47 matter. 11237_ HV Slug penetrates R-06 Scavenger. 11237_ HV Slug penetrates T-07 Excavator. 11237_ Destroyed Tractor Beam. Map ----- +----------------------------------------------------+ | ??????# #??# #?? | #???????? | | ??????### ###??# #??? #???????? | | ????????# #????# #??? #???????? | | ????????# #????# #????#####???????? | | ????????+ #????# #????????????????? | | ????????# #????# #????????????????? | | ????????# #????# #????????????????? | | ????????# #????# #????????????????? | | ????????# #????# #????????????????? | | ######### #????# #????????????????? | | #????# #????????????????? | | #????# #????????????????? | | #????#######+######????????????????? | | #??????????# ############??????????? | | #??????????# ## [ ??????????? | | ########## #??????????# ## ???????????? | | ????????# ############*## """ """ ???????????? | | ??????+ =% # """ """ ! #????????? | | "" #?????# + """ """ #????????? | | "" #?????# # #????????? | | "" #?????###########+#### ### """T""" #????????? | | #?????????????# =#!###############????????? | | #?????????????# !*/%## "" #????????? | | #?????????????# !#!## "Y"k #????????? | | ####?????????????# #%## k #????????? | | ?????????????????# #@=; ! #???????? | | ?????????????????# ####]!]!= #???????? | | ?????????????????# #??# ]&!! #???????? | | ?????????????????# #??#*]]""""""" #???????? | | ?????????????????# #??# /!""""""" #???????# | | ?????????????????# ! #??# %/" """"" #???????# | | ?????????????????# #??# %!""""""" #???????# | | ?????????????????# #??# ]]**=! #???????# | | ?????????????????# #??#=**]! #???????# | | ?????????????????########??#######/######???????# | | ???????????????????????????????# ????????+ | | ???????????????????????????????# #??????????# | | ?????????????????????????####### #??????????# | | ?????????????????????????# #??????????# | | ?????????????????????????# #??????????# | | ????????##########???????# #??????????# | | ????????# ######### """"""" #??????????# | | ????????# """ # """""""%=############ | | ????????# """ # """"""" [ = | | ????????# """ #= """"""" !############ | | ????????# ! +* #??????????## | | ????????# """ !#= #???????????? | | ????????# """ # ##########+####???????????? | | ????????# """ # #?? #????????????????? | | ????????# # #? " #????????????????? | +----------------------------------------------------+ Best States ------------- Heat Dissipation 95 Coolant Potential 130 Energy Generation 52 Energy Capacity 1150 Matter Stores 1800 Matter Capacity 1800 Sight Range 20 Terrain Scan Range 16 Terrain Scan Density 10 Power Amplification 40 Additional Mass Support 12 Armor Coverage 450 Utility Shielding 33 Weapon Cycling 15 Evasion (%) 57 Targeting Accuracy 12 Core Analysis 8 Offensive Hacking 15 Defensive Hacking 5 Item Schematics ----------------- None Robot Schematics ------------------ None Fabricated ------------ Nothing Repaired ---------- Nothing Studied --------- Spread Laser | -9/Materials | Hacked Hover Unit | -9/Materials | Hacked Imp. Hover Unit | -9/Materials | Hacked Alien Tech Used ----------------- None Achievements -------------- None Challenges ------------ None RPGLIKE | -11 -10 -10 -9 -9 -9 -8 -8 -8 -8 -7 --------- Run | Yrd Mat Min Mat Min Exi Min Mat Gar Mat Fac Levels Raised 16 | . 3 1 5 . . . 4 1 . 2 XP Earned 27665 | 3000 5081 2163 6613 311 117 500 4858 1585 985 2452 XP Spent 25850 | 2960 1300 3140 6700 1400 480 500 5905 115 . 3350 Upgrades 56 | 10 3 11 10 2 8 1 6 1 . 4 Power Slot 1 | . . . 1 . . . . . . . Propulsion Slot 3 | 1 . . 1 . . . 1 . . . Utility Slot 5 | 1 1 . 1 . . . 2 . . . Weapon Slot 3 | 1 . . 1 1 . . . . . . Core Integrity 10 | . . . . . 8 . 1 1 . . Heat Dissipation 10 | 3 . 7 . . . . . . . . Energy Generation 1 | . 1 . . . . . . . . . Energy Storage 1 | . 1 . . . . . . . . . Mass Support 3 | 1 . . 1 . . . . . . 1 Inventory Capacity 5 | 2 . 1 1 . . . . . . 1 Sight Range 4 | . . 1 . 1 . 1 1 . . . Ranged Accuracy 6 | 1 . 2 2 . . . 1 . . . Hack Attack % 3 | . . . 1 . . . . . . 2 Hack Defense % 1 | . . . 1 . . . . . . . Protomatter Created 3778 | . 437 22 487 . 13 93 843 466 823 594 Integrity Restored 8272 | . 419 328 781 121 39 . 2176 1261 2004 1143 Core 6818 | . 357 328 490 79 39 . 1975 925 1482 1143 Parts 1454 | . 62 . 291 42 . . 201 336 522 . Protomatter Decayed 465 | . 112 99 100 . 9 . . . 98 47 Game ------ Seed RefinerySpreadCutter Manual? 0 Play Time 02:13:43 Cumulative 472.5 hours Start 2025.12.09 @ 09:46:48 End 2025.12.11 @ 11:09:42 Sessions 5 Manual Loads 0 Difficulty Rogue Special Mode Winter2019/RPGLIKE Game No. 176 Rogue 22 Adventurer 154 Explorer 0 Win Type - Total 19 Types 4/3/3/3/2/1/0/1/1/1 Lore% 93 Gallery% 84 Achievement% 61 Wizard Run 0 Options --------- Layout 2 ASCII 0 Keyboard 0 Movement Numpad Keybinds 0 Fullscreen 2 Font 24/Smallcaps Map View 50x44 Zoom Use 0% Tactical HUD 1 Map Filters NONE Filters NONE Steam 1 RUN: d0cb8e6f-16d5-4d02-9d58-db9704080064